fUSD/lending_fUSD_20260322
["ID","MTS","AMOUNT","RATE_DAILY","PERIOD"]
[408760942,1774203046281,-500.0,0.00015999,2]
[408760944,1774203046291,-500.0,0.00015999,2]
[408760946,1774203046300,-500.0,0.00015999,2]
[408760948,1774203046309,-616.72336867,0.00015999,2]
[408760950,1774203046319,-505.59,0.00015999,2]
[408760952,1774203046330,-505.59,0.00015999,2]
[408760954,1774203046339,-500.0,0.00015999,2]
[408760956,1774203046348,-500.0,0.00015999,2]
[408760958,1774203046357,-500.0,0.00015999,2]
[408760959,1774203046367,-647.53,0.00015999,2]
[408760960,1774203046378,-647.53,0.00015999,2]
[408760961,1774203046386,-647.53,0.00015999,2]
[408760962,1774203046395,-500.0,0.00016,2]
[408760963,1774203046406,-708.0,0.00016062,2]
[408760964,1774203046415,-708.0,0.00016066,2]
[408760965,1774203046424,-708.0,0.00016082,2]
[408760966,1774203046433,-727.415099,0.00016109,7]
[408760967,1774203046442,-559.85953,0.00016109,7]
[408760968,1774203046451,-500.0,0.0001611,2]
[408760969,1774203046460,-2550.955689,0.00016111,7]
[408760970,1774203046469,-708.0,0.00016149,2]
[408760971,1774203046478,-708.0,0.00016197,2]
[408760972,1774203046487,-500.0,0.00016245,2]
[408760973,1774203046495,-708.0,0.00016248,2]
[408760974,1774203046505,-4000.0,0.00016282,2]
[408760975,1774203046514,-2000.0,0.00016307,2]
[408760976,1774203046523,-708.0,0.00016318,2]
[408760977,1774203046532,-708.0,0.00016327,2]
[408760978,1774203046541,-708.0,0.00016331,2]
[408760979,1774203046550,-501.0,0.00016415,4]
[408760980,1774203046559,-155.0,0.00016436,2]
[408760981,1774203046568,-169.83,0.00016437,2]
[408760982,1774203046577,-506.7,0.00016438,2]
[408760983,1774203046587,-365.09,0.00016438,2]
[408760984,1774203046596,-264.79,0.00016438,2]
[408760985,1774203046605,-151.0,0.00016438,2]
[408760986,1774203046615,-294.560932,0.00016438,2]
[408760987,1774203046624,-475.976313,0.00016438,2]
[408760989,1774203046634,-475.976313,0.00016438,2]
[408760990,1774203046643,-475.976313,0.00016438,2]
[408760992,1774203046653,-475.976313,0.00016438,2]
[408760994,1774203046662,-151.0,0.00016438,2]
[408760996,1774203046671,-151.0,0.00016438,2]
[408760998,1774203046680,-2524.9,0.000165,2]
[408761000,1774203046689,-487.27,0.000165,2]
[408761002,1774203046698,-500.0,0.00016603,2]
[408761004,1774203046708,-300.31729154,0.00016636,2]
[408761006,1774203046717,-4000.0,0.0001667,2]
[408761008,1774203046726,-708.0,0.00016717,2]
[408761010,1774203046736,-708.0,0.00016752,2]
[408761012,1774203046745,-708.0,0.00016779,2]
[408761014,1774203046754,-854.09,0.000168,2]
[408761016,1774203046763,-708.0,0.000168,2]
[408761018,1774203046773,-287.49599877,0.00016806,2]
[408761020,1774203046782,-708.0,0.00016817,2]
[408761022,1774203046791,-311.34,0.00016817,2]
[408761024,1774203046800,-2085.01,0.000169,2]
[408761026,1774203046810,-1766.69,0.000169,2]
[408761028,1774203046819,-708.0,0.00016922,2]
[408761030,1774203046828,-708.0,0.00016946,2]
[408761032,1774203046837,-1653.7,0.00016999,2]
[408761034,1774203046847,-500.0,0.00016999,2]
[408761036,1774203046857,-500.0,0.00016999,2]
[408761038,1774203046867,-500.0,0.00016999,2]
[408761040,1774203046876,-505.59,0.00016999,2]
[408761042,1774203046886,-500.0,0.00016999,2]
[408761044,1774203046895,-647.53,0.00016999,2]
[408761046,1774203046905,-350.0,0.00017,2]
[408761048,1774203046915,-249.84043967,0.00017058,2]
[408761111,1774203047526,-2500.0,0.00011748,2]
[408761113,1774203047535,-151.0,0.00013698,2]
[408761115,1774203047545,-156.7863796,0.00013698,2]
[408761117,1774203047555,-3750.15956033,0.00017058,2]
[408761119,1774203047564,-150.9104,0.000172,2]
[408761121,1774203047574,-501.0,0.0001722,4]
[408761123,1774203047583,-1121.0,0.00017248,2]
[408761125,1774203047594,-268.11863027,0.00017266,2]
[408761127,1774203047603,-349.94,0.00017352,2]
[408761129,1774203047613,-3551.0,0.00017372,2]
[408761131,1774203047622,-505.59,0.00017403,2]
[408761133,1774203047631,-505.59,0.00017403,2]
[408761135,1774203047640,-505.59,0.00017403,2]
[408761137,1774203047650,-505.59,0.00017403,2]
[408761139,1774203047659,-505.81,0.00017403,2]
[408761141,1774203047669,-49938.11760255,0.00017446,2]
[408761143,1774203047678,-1261.11,0.000175,2]
[408761145,1774203047688,-15800.93211783,0.00017513,2]
[408761147,1774203047697,-1653.7,0.00017579,2]
[408761149,1774203047707,-1653.7,0.00017579,2]
[408761151,1774203047716,-1653.7,0.00017579,2]
[408761153,1774203047726,-1653.7,0.00017579,2]
[408761155,1774203047735,-1653.91,0.00017579,2]
[408761157,1774203047744,-529.42180418,0.00017579,2]
[408761159,1774203047754,-500.0,0.00017579,2]
[408761161,1774203047763,-623.17225997,0.00017579,2]
[408761163,1774203047773,-500.0,0.00017579,2]
[408761165,1774203047782,-500.0,0.00017579,2]
[408761167,1774203047791,-252.23,0.00017579,2]
[408761169,1774203047801,-500.0,0.00017579,2]
[408761171,1774203047810,-500.0,0.00017579,2]
[408761173,1774203047819,-464.09,0.00017579,2]
[408761175,1774203047828,-647.53,0.00017579,2]
[408761177,1774203047838,-647.53,0.00017579,2]
[408761179,1774203047847,-647.53,0.00017579,2]
[408761181,1774203047857,-647.53,0.00017579,2]
[408761183,1774203047867,-647.55,0.00017579,2]
[408761185,1774203047876,-391.2,0.00017843,30]
[408761187,1774203047886,-500.0,0.00018,2]
[408761189,1774203047895,-501.0,0.00018024,5]
[408761191,1774203047905,-1676.61,0.00018024,2]
[408761193,1774203047914,-2466.0,0.00018276,2]
[408761195,1774203047924,-416.351,0.00018276,2]
[408761197,1774203047934,-6008.0,0.00018276,2]
[408761199,1774203047943,-151.0,0.00018469,2]
[408761201,1774203047953,-151.0,0.00018469,2]
[408761202,1774203047962,-5000.0,0.00018469,2]
[408761204,1774203047972,-3918.418818,0.00018469,2]
[408761206,1774203047981,-151.0,0.00018469,2]
[408761208,1774203047991,-151.0,0.00018482,2]
[408761211,1774203048001,-151.1389,0.000185,2]
[408761212,1774203048010,-2524.9,0.000185,2]
[408761214,1774203048019,-487.27,0.000185,2]
[408761216,1774203048028,-854.09,0.000187,2]
[408761218,1774203048038,-500.0,0.00018723,2]
[408761220,1774203048047,-3371.64952446,0.00018759,2]
[408761222,1774203048057,-311.83533,0.00018794,7]
[408761224,1774203048066,-501.0,0.00018829,6]
[408761226,1774203048075,-49938.11760255,0.00018917,2]
[408761228,1774203048085,-782.4,0.00018932,30]
[408761230,1774203048094,-400.0,0.00019,2]
[408761232,1774203048104,-2085.01,0.00019,2]
[408761234,1774203048113,-500.0,0.00019,2]
[408761236,1774203048123,-151.0,0.00019,2]
[408761238,1774203048133,-151.0,0.00019,2]
[408761240,1774203048143,-475.976313,0.00019,2]
[408761242,1774203048152,-475.976313,0.00019,2]
[408761244,1774203048162,-475.976313,0.00019,2]
[408761246,1774203048171,-475.976313,0.00019,2]
[408761248,1774203048180,-415.01760791,0.00019168,2]
[408761250,1774203048190,-155.0,0.00019176,2]
[408761252,1774203048199,-155.31,0.00019178,2]
[408761254,1774203048210,-177.95,0.00019178,2]
[408761256,1774203048219,-151.0,0.00019178,2]
[408761258,1774203048229,-151.0,0.00019178,2]
[408761260,1774203048238,-151.0,0.00019178,2]
[408761262,1774203048248,-151.0,0.00019178,2]
[408761264,1774203048258,-151.0,0.00019178,2]
[408761266,1774203048267,-151.0,0.00019178,2]
[408761268,1774203048276,-190.14948,0.00019178,2]
[408761270,1774203048286,-271.812456,0.00019178,2]
[408761272,1774203048295,-271.812456,0.00019178,2]
[408761273,1774203048304,-271.812456,0.00019178,2]
[408761275,1774203048313,-271.812456,0.00019178,2]
[408761277,1774203048324,-271.812456,0.00019178,2]
[408761279,1774203048339,-271.812456,0.00019178,2]
[408761281,1774203048350,-271.812456,0.00019178,2]
[408761283,1774203048360,-271.812456,0.00019178,2]
[408761285,1774203048370,-556.466781,0.00019178,2]
[408761287,1774203048380,-556.466781,0.00019178,2]
[408761289,1774203048389,-556.466781,0.00019178,2]
[408761291,1774203048398,-556.466781,0.00019178,2]
[408761293,1774203048409,-556.466781,0.00019178,2]
[408761295,1774203048418,-556.466781,0.00019178,2]
[408761296,1774203048427,-556.466781,0.00019178,2]
[408761298,1774203048436,-556.466781,0.00019178,2]
[408761321,1774203048647,-566.548979,0.00019178,2]
[408761322,1774203048656,-566.548979,0.00019178,2]
[408761324,1774203048666,-566.548979,0.00019178,2]
[408761326,1774203048675,-566.548979,0.00019178,2]
[408761328,1774203048685,-566.548979,0.00019178,2]
[408761330,1774203048695,-566.548979,0.00019178,2]
[408761332,1774203048703,-566.548979,0.00019178,2]
[408761334,1774203048713,-566.548979,0.00019178,2]
[408761336,1774203048722,-150.0,0.00019178,2]
[408761338,1774203048731,-150.0,0.00019178,2]
[408761340,1774203048741,-150.0,0.00019178,2]
[408761342,1774203048750,-160.20152507,0.00019178,2]
[408761344,1774203048759,-150.0,0.00019178,2]
[408761346,1774203048768,-500.0,0.00019199,2]
[408761348,1774203048777,-115293.93,0.000192,2]
[408761350,1774203048786,-1766.69,0.000192,2]
[408761352,1774203048795,-151.0,0.000192,2]
[408761353,1774203048804,-151.0,0.000192,2]
[408761355,1774203048814,-210.08983,0.000192,2]
[408761357,1774203048823,-151.0,0.000192,2]
[408761359,1774203048833,-151.0,0.000192,2]
[408761361,1774203048843,-151.0,0.000192,2]
[408761363,1774203048852,-151.0,0.000192,2]
[408761365,1774203048861,-151.0,0.000192,2]
[408761367,1774203048871,-151.0,0.000192,2]
[408761369,1774203048880,-151.0,0.000192,2]
[408761371,1774203048890,-151.0,0.000192,2]
[408761373,1774203048899,-166.833725,0.000192,2]
[408761375,1774203048908,-151.0,0.000192,2]
[408761377,1774203048917,-265.584868,0.000192,2]
[408761379,1774203048926,-265.584868,0.000192,2]
[408761381,1774203048935,-265.584868,0.000192,2]
[408761383,1774203048944,-265.584868,0.000192,2]
[408761385,1774203048953,-151.0,0.000192,2]
[408761387,1774203048962,-151.0,0.000192,2]
[408761389,1774203048971,-474.623913,0.000192,2]
[408761391,1774203048979,-474.623913,0.000192,2]
[408761393,1774203048988,-474.623913,0.000192,2]
[408761395,1774203048997,-474.623913,0.000192,2]
[408761397,1774203049006,-1070.103139,0.000192,2]
[408761399,1774203049015,-1070.103139,0.000192,2]
[408761400,1774203049024,-1070.103139,0.000192,2]
[408761402,1774203049033,-1070.103139,0.000192,2]
[408761404,1774203049041,-506.7,0.00019217,2]
[408761406,1774203049050,-310.408673,0.00019366,7]
[408761408,1774203049059,-15800.93211783,0.0001946,2]
[408761410,1774203049068,-154.69392922,0.00019502,120]
[408761412,1774203049078,-233.29,0.00019509,2]
[408761414,1774203049086,-1453.21193456,0.00019582,2]
[408761416,1774203049095,-501.0,0.00019634,6]
[408761418,1774203049104,-150.0,0.00019726,2]
[408761420,1774203049113,-150.0,0.00019726,2]
[408761422,1774203049122,-150.0,0.00019726,2]
[408761424,1774203049131,-163.19079758,0.00019726,2]
[408761426,1774203049139,-500.0,0.00019726,2]
[408761428,1774203049149,-500.0,0.00019726,2]
[408761430,1774203049163,-500.0,0.00019726,2]
[408761432,1774203049171,-500.0,0.00019726,2]
[408761434,1774203049180,-500.0,0.00019726,2]
[408761436,1774203049188,-500.0,0.00019726,2]
[408761438,1774203049197,-500.0,0.00019726,2]
[408761440,1774203049206,-500.0,0.00019726,2]
[408761441,1774203049215,-500.0,0.00019726,2]
[408761443,1774203049224,-484.98041623,0.00019726,2]
[408761445,1774203049233,-500.0,0.00019726,2]
[408761447,1774203049242,-500.0,0.00019726,2]
[408761449,1774203049251,-500.0,0.00019726,2]
[408761451,1774203049260,-500.0,0.00019726,2]
[408761453,1774203049269,-250.0,0.00019726,2]
[408761455,1774203049278,-150.0,0.00019726,2]
[408761457,1774203049288,-250.0,0.00019726,2]
[408761459,1774203049298,-151.3678,0.000198,2]
[408761461,1774203049307,-233.29,0.00019839,2]
[408761463,1774203049316,-240.42720648,0.00019873,2]
[408761465,1774203049326,-150.0,0.0002,2]
[408761467,1774203049339,-500.0,0.0002,2]
[408761469,1774203049348,-1173.6,0.00020021,30]
[408761471,1774203049358,-232.04089383,0.00020055,120]
[408761473,1774203049371,-1261.11,0.000201,2]
[408761475,1774203049384,-581.932079,0.00020136,7]
[408761477,1774203049404,-447.887624,0.00020136,7]
[408761479,1774203049415,-3061.146827,0.00020139,7]
[408761481,1774203049424,-233.29,0.0002017,2]
[408761483,1774203049433,-1676.61,0.00020187,2]
[408761485,1774203049442,-534.0,0.00020192,2]
[408761487,1774203049451,-350.0,0.00020274,2]
[408761489,1774203049460,-150.0,0.00020274,2]
[408761491,1774203049469,-350.0,0.00020274,2]
[408761493,1774203049480,-49938.11760255,0.00020388,2]
[408761495,1774203049489,-501.0,0.00020439,7]
[408761497,1774203049498,-415.68,0.00020485,2]
[408761499,1774203049507,-160.34,0.00020548,2]
[408761501,1774203049517,-250.780991,0.00020569,7]
[408761503,1774203049526,-279.0,0.00020649,2]
[408761504,1774203049535,-151.0,0.00020718,2]
[408761505,1774203049544,-151.0,0.00020718,2]
[408761507,1774203049554,-151.0,0.00020718,2]
[408761509,1774203049563,-431.996277,0.0002075,7]
[408761511,1774203049572,-1515.398223,0.0002075,7]
[408761513,1774203049581,-284.261749,0.0002075,7]
[408761515,1774203049590,-8703.0472553,0.00020767,2]
[408761655,1774203051132,-13209.9527447,0.00020767,2]
[408761657,1774203051142,-7243.0,0.00020767,2]
[408761659,1774203051151,-500.0,0.00020799,2]
[408761661,1774203051161,-854.09,0.000208,7]
[408761663,1774203051170,-29225.61901606,0.000208,2]
[408761665,1774203051182,-86068.31098394,0.000208,2]
[408761667,1774203051191,-151.0,0.000208,2]
[408761669,1774203051200,-484.525869,0.000208,2]
[408761671,1774203051210,-484.525869,0.000208,2]
[408761673,1774203051220,-484.525869,0.000208,2]
[408761676,1774203051230,-484.525869,0.000208,2]
[408761677,1774203051239,-993.997431,0.000208,2]
[408761679,1774203051249,-993.997431,0.000208,2]
[408761681,1774203051259,-993.997431,0.000208,2]
[408761683,1774203051269,-993.997431,0.000208,2]
[408761685,1774203051279,-450.0,0.00020822,2]
[408761688,1774203051288,-150.0,0.00020822,2]
[408761690,1774203051298,-450.0,0.00020822,2]
[408761691,1774203051308,-415.68,0.00020826,2]
[408761693,1774203051317,-347.0,0.00020849,2]
[408761695,1774203051328,-450.0,0.00021,2]
[408761697,1774203051339,-500.0,0.00021,2]
[408761699,1774203051349,-160.0,0.00021,7]
[408761701,1774203051359,-500.0,0.00021002,2]
[408761703,1774203051370,-500.0,0.00021002,2]
[408761705,1774203051380,-500.0,0.00021002,2]
[408761707,1774203051389,-500.0,0.00021002,2]
[408761709,1774203051398,-500.0,0.00021002,2]
[408761711,1774203051410,-500.0,0.00021002,2]
[408761713,1774203051419,-500.0,0.00021002,2]
[408761715,1774203051428,-500.0,0.00021002,2]
[408761717,1774203051437,-500.0,0.00021002,2]
[408761719,1774203051446,-500.0,0.00021002,2]
[408761721,1774203051455,-500.0,0.00021002,2]
[408761723,1774203051464,-500.0,0.00021002,2]
[408761725,1774203051474,-500.0,0.00021002,2]
[408761727,1774203051483,-600.0,0.00021002,2]
[408761729,1774203051493,-700.0,0.00021002,2]
[408761731,1774203051502,-500.0,0.00021002,2]
[408761733,1774203051511,-600.0,0.00021002,2]
[408761735,1774203051520,-700.0,0.00021002,2]
[408761737,1774203051529,-500.0,0.00021002,2]
[408761739,1774203051539,-600.0,0.00021002,2]
[408761741,1774203051548,-616.35953626,0.00021002,2]
[408761743,1774203051558,-600.0,0.00021002,2]
[408761745,1774203051567,-500.0,0.00021002,2]
[408761747,1774203051576,-600.0,0.00021002,2]
[408761749,1774203051586,-500.0,0.00021002,2]
[408761751,1774203051595,-600.0,0.00021002,2]
[408761753,1774203051604,-500.0,0.00021002,2]
[408761755,1774203051613,-600.0,0.00021002,2]
[408761757,1774203051622,-500.0,0.00021002,2]
[408761759,1774203051632,-600.0,0.00021002,2]
[408761761,1774203051641,-500.0,0.00021002,2]
[408761763,1774203051653,-800.0,0.00021002,2]
[408761765,1774203051662,-500.0,0.00021002,2]
[408761767,1774203051671,-600.0,0.00021002,2]
[408761770,1774203051681,-500.0,0.00021002,2]
[408761771,1774203051691,-800.0,0.00021002,2]
[408761773,1774203051699,-500.0,0.00021002,2]
[408761775,1774203051709,-600.0,0.00021002,2]
[408761777,1774203051718,-815.54364835,0.00021002,2]
[408761779,1774203051727,-500.0,0.00021002,2]
[408761781,1774203051737,-800.0,0.00021002,2]
[408761783,1774203051747,-600.0,0.00021002,2]
[408761785,1774203051756,-800.0,0.00021002,2]
[408761787,1774203051767,-500.0,0.00021002,2]
[408761789,1774203051778,-500.0,0.00021002,2]
[408761791,1774203051788,-600.0,0.00021002,2]
[408761793,1774203051797,-500.0,0.00021002,2]
[408761796,1774203051809,-500.0,0.00021002,2]
[408761797,1774203051820,-800.0,0.00021002,2]
[408761799,1774203051830,-600.0,0.00021002,2]
[408761801,1774203051839,-669.20743052,0.00021002,2]
[408761803,1774203051849,-800.0,0.00021002,2]
[408761805,1774203051858,-500.0,0.00021002,2]
[408761807,1774203051867,-500.0,0.00021002,2]
[408761809,1774203051877,-800.0,0.00021002,2]
[408761811,1774203051886,-500.0,0.00021002,2]
[408761813,1774203051895,-800.0,0.00021002,2]
[408761815,1774203051905,-600.0,0.00021002,2]
[408761817,1774203051915,-800.0,0.00021002,2]
[408761819,1774203051924,-800.0,0.00021002,2]
[408761821,1774203051934,-500.0,0.00021002,2]
[408761823,1774203051943,-800.0,0.00021002,2]
[408761825,1774203051952,-800.0,0.00021002,2]
[408761827,1774203051962,-500.0,0.00021002,2]
[408761829,1774203051971,-1000.0,0.00021002,2]
[408761832,1774203051981,-500.0,0.00021002,2]
[408761833,1774203051991,-700.0,0.00021002,2]
[408761836,1774203052000,-500.0,0.00021002,2]
[408761837,1774203052010,-700.0,0.00021002,2]
[408761839,1774203052019,-500.0,0.00021002,2]
[408761842,1774203052028,-700.0,0.00021002,2]
[408761843,1774203052037,-500.0,0.00021002,2]
[408761845,1774203052047,-500.0,0.00021002,2]
[408761848,1774203052056,-700.0,0.00021002,2]
[408761850,1774203052065,-500.0,0.00021002,2]
[408761852,1774203052075,-700.0,0.00021002,2]
[408761853,1774203052085,-500.0,0.00021002,2]
[408761855,1774203052094,-939.08274317,0.00021002,2]
[408761857,1774203052103,-700.0,0.00021002,2]
[408761859,1774203052113,-700.0,0.00021002,2]
[408761862,1774203052122,-500.0,0.00021002,2]
[408761863,1774203052132,-700.0,0.00021002,2]
[408761865,1774203052141,-700.0,0.00021002,2]
[408761867,1774203052150,-700.0,0.00021002,2]
[408761869,1774203052159,-700.0,0.00021002,2]
[408761871,1774203052168,-700.0,0.00021002,2]
[408761874,1774203052179,-700.0,0.00021002,2]
[408761876,1774203052189,-700.0,0.00021002,2]
[408761878,1774203052198,-700.0,0.00021002,2]
[408761880,1774203052207,-700.0,0.00021002,2]
[408761882,1774203052215,-700.0,0.00021002,2]
[408761884,1774203052224,-700.0,0.00021002,2]
[408761885,1774203052235,-700.0,0.00021002,2]
[408761887,1774203052244,-700.0,0.00021002,2]
[408761889,1774203052253,-700.0,0.00021002,2]
[408761891,1774203052262,-918.70468177,0.00021002,2]
[408761893,1774203052271,-700.0,0.00021002,2]
[408761895,1774203052281,-700.0,0.00021002,2]
[408761897,1774203052290,-700.0,0.00021002,2]
[408761899,1774203052299,-700.0,0.00021002,2]
[408761901,1774203052309,-700.0,0.00021002,2]
[408761903,1774203052318,-1300.0,0.00021002,2]
[408761905,1774203052329,-151.0,0.00021002,2]
[408761907,1774203052341,-151.0,0.00021002,2]
[408761909,1774203052351,-500.0,0.00021002,2]
[408761911,1774203052360,-500.0,0.00021002,2]
[408761913,1774203052370,-500.0,0.00021002,2]
[408761915,1774203052379,-500.0,0.00021002,2]
[408761917,1774203052388,-500.0,0.00021002,2]
[408761919,1774203052397,-500.0,0.00021002,2]
[408761921,1774203052408,-500.0,0.00021002,2]
[408761923,1774203052417,-500.0,0.00021002,2]
[408761925,1774203052427,-500.0,0.00021002,2]
[408761927,1774203052436,-500.0,0.00021002,2]
[408761929,1774203052446,-500.0,0.00021002,2]
[408761931,1774203052454,-900.0,0.00021002,2]
[408761933,1774203052464,-500.0,0.00021002,2]
[408761935,1774203052473,-900.0,0.00021002,2]
[408761937,1774203052482,-500.0,0.00021002,2]
[408761939,1774203052491,-500.0,0.00021002,2]
[408761941,1774203052500,-900.0,0.00021002,2]
[408761943,1774203052509,-502.09649328,0.00021002,2]
[408761945,1774203052518,-900.0,0.00021002,2]
[408761947,1774203052528,-900.0,0.00021002,2]
[408761949,1774203052537,-500.0,0.00021002,2]
[408761951,1774203052546,-500.0,0.00021002,2]
[408761953,1774203052556,-900.0,0.00021002,2]
[408761955,1774203052565,-500.0,0.00021002,2]
[408761957,1774203052574,-900.0,0.00021002,2]
[408761959,1774203052582,-500.0,0.00021002,2]
[408761961,1774203052591,-500.0,0.00021002,2]
[408761963,1774203052600,-772.14576397,0.00021002,2]
[408761965,1774203052609,-900.0,0.00021002,2]
[408761967,1774203052618,-500.0,0.00021002,2]
[408761969,1774203052629,-500.0,0.00021002,2]
[408761971,1774203052638,-500.0,0.00021002,2]
[408761973,1774203052647,-900.0,0.00021002,2]
[408761975,1774203052656,-500.0,0.00021002,2]
[408761977,1774203052666,-500.0,0.00021002,2]
[408761979,1774203052675,-500.0,0.00021002,2]
[408761981,1774203052684,-900.0,0.00021002,2]
[408761983,1774203052694,-500.0,0.00021002,2]
[408761985,1774203052703,-500.0,0.00021002,2]
[408761987,1774203052712,-500.0,0.00021002,2]
[408761989,1774203052722,-900.0,0.00021002,2]
[408761991,1774203052731,-500.0,0.00021002,2]
[408761993,1774203052739,-500.0,0.00021002,2]
[408761995,1774203052748,-900.0,0.00021002,2]
[408761997,1774203052757,-500.0,0.00021002,2]
[408761999,1774203052766,-500.0,0.00021002,2]
[408762001,1774203052775,-900.0,0.00021002,2]
[408762003,1774203052784,-500.0,0.00021002,2]
[408762005,1774203052794,-900.0,0.00021002,2]
[408762007,1774203052803,-500.0,0.00021002,2]
[408762009,1774203052812,-982.65776178,0.00021002,2]
[408762011,1774203052821,-600.0,0.00021002,2]
[408762013,1774203052830,-500.0,0.00021002,2]
[408762015,1774203052840,-1543.28884692,0.00021002,2]
[408762016,1774203052849,-600.0,0.00021002,2]
[408762018,1774203052858,-500.0,0.00021002,2]
[408762020,1774203052867,-600.0,0.00021002,2]
[408762022,1774203052876,-500.0,0.00021002,2]
[408762024,1774203052885,-600.0,0.00021002,2]
[408762026,1774203052895,-500.0,0.00021002,2]
[408762028,1774203052905,-600.0,0.00021002,2]
[408762100,1774203053591,-500.0,0.00021002,2]
[408762102,1774203053602,-600.0,0.00021002,2]
[408762105,1774203053611,-500.0,0.00021002,2]
[408762107,1774203053620,-600.0,0.00021002,2]
[408762108,1774203053629,-837.59327436,0.00021002,2]
[408762110,1774203053638,-600.0,0.00021002,2]
[408762112,1774203053648,-600.0,0.00021002,2]
[408762114,1774203053660,-600.0,0.00021002,2]
[408762117,1774203053672,-600.0,0.00021002,2]
[408762119,1774203053681,-600.0,0.00021002,2]
[408762121,1774203053690,-600.0,0.00021002,2]
[408762123,1774203053699,-1031.92758367,0.00021002,2]
[408762125,1774203053708,-500.0,0.00021002,2]
[408762127,1774203053718,-800.0,0.00021002,2]
[408762129,1774203053726,-500.0,0.00021002,2]
[408762131,1774203053735,-500.0,0.00021002,2]
[408762133,1774203053744,-922.1478145,0.00021002,2]
[408762135,1774203053753,-500.0,0.00021002,2]
[408762137,1774203053762,-500.0,0.00021002,2]
[408762139,1774203053771,-526.96332949,0.00021002,2]
[408762141,1774203053780,-500.0,0.00021002,2]
[408762143,1774203053790,-500.0,0.00021002,2]
[408762145,1774203053800,-500.0,0.00021002,2]
[408762147,1774203053810,-500.0,0.00021002,2]
[408762149,1774203053819,-500.0,0.00021002,2]
[408762151,1774203053829,-700.0,0.00021002,2]
[408762153,1774203053841,-500.0,0.00021002,2]
[408762155,1774203053851,-500.0,0.00021002,2]
[408762157,1774203053860,-500.0,0.00021002,2]
[408762159,1774203053871,-500.0,0.00021002,2]
[408762161,1774203053880,-500.0,0.00021002,2]
[408762163,1774203053890,-500.0,0.00021002,2]
[408762165,1774203053900,-800.0,0.00021002,2]
[408762167,1774203053909,-500.0,0.00021002,2]
[408762169,1774203053919,-500.0,0.00021002,2]
[408762171,1774203053928,-700.0,0.00021002,2]
[408762174,1774203053938,-900.0,0.00021002,2]
[408762176,1774203053947,-960.16430936,0.00021002,2]
[408762178,1774203053956,-500.0,0.00021002,2]
[408762180,1774203053965,-500.0,0.00021002,2]
[408762182,1774203053974,-600.0,0.00021002,2]
[408762184,1774203053983,-500.0,0.00021002,2]
[408762186,1774203053992,-500.0,0.00021002,2]
[408762187,1774203054001,-600.0,0.00021002,2]
[408762190,1774203054011,-500.0,0.00021002,2]
[408762192,1774203054020,-500.0,0.00021002,2]